fUSD/lending_fUSD_20260504
["ID","MTS","AMOUNT","RATE_DAILY","PERIOD"]
[421572541,1777900232000,-211.2641788,0.00026416,2]
[421572538,1777900232000,-525.05329884,0.00026096,2]
[421572540,1777900232000,-189.32,0.000264,14]
[421572539,1777900232000,-165.3,0.00026296,2]
[421572543,1777900232000,-238.64,0.00026704,2]
[421572544,1777900232000,-689.49,0.0002684,2]
[421572546,1777900232000,-183.55,0.00027397,7]
[421572557,1777900232000,-1267.00365793,0.00028323,2]
[421572563,1777900232000,-183.55,0.0002896,2]
[421572561,1777900232000,-185.89,0.00028934,2]
[421572559,1777900232000,-500.0,0.00028916,2]
[421572548,1777900232000,-525.05329876,0.00027894,2]
[421572565,1777900232000,-183.55,0.00029232,7]
[421572566,1777900232000,-185.89,0.00029232,7]
[421572552,1777900232000,-165.3,0.00028267,2]
[421572550,1777900232000,-236.73288153,0.00027956,2]
[421572567,1777900232000,-150.0,0.00029534,2]
[421572617,1777900232000,-153.0,0.00032187,30]
[421572600,1777900232000,-525.05329876,0.00031489,2]
[421572616,1777900232000,-1628.47,0.00031943,2]
[421572639,1777900232000,-155.0,0.00034187,30]
[421572633,1777900232000,-156.0,0.00033187,30]
[421572635,1777900232000,-4763.58430513,0.00033972,2]
[421572643,1777900232000,-497.85714301,0.00034283,2]
[421572642,1777900232000,-156.79,0.00034247,2]
[421572647,1777900232000,-156.54222813,0.00035187,30]
[421572648,1777900232000,-156.0,0.00035187,30]
[421572659,1777900232000,-231.49,0.00036132,30]
[421572658,1777900232000,-252.93,0.00036132,30]
[421572656,1777900232000,-150.0,0.00035899,2]
[421572652,1777900232000,-4923.3764481,0.00035855,2]
[421572649,1777900232000,-320.0,0.00035732,120]
[421572654,1777900232000,-17797.4310929,0.00035855,2]
[421572650,1777900232000,-500.0,0.00035771,31]
[421572653,1777900232000,-1879.7385647,0.00035855,2]
[421572655,1777900232000,-497.85714301,0.00035881,2]
[421572657,1777900232000,-1628.47,0.00035935,2]
[421572651,1777900232000,-3492.3014867,0.00035855,2]
[421572661,1777900232000,-165.3,0.00036153,30]
[421572660,1777900232000,-509.38,0.00036132,30]
[421572663,1777900232000,-156.0,0.00036187,30]
[421572640,1777900232000,-156.0,0.00034187,30]
[421572637,1777900232000,-165.3,0.00034182,7]
[421572612,1777900232000,-4875.0,0.000317,5]
[421572634,1777900232000,-525.05329876,0.00033286,2]
[421572636,1777900232000,-786.18,0.00034182,38]
[421572613,1777900232000,-252.0,0.00031838,30]
[421572618,1777900232000,-155.0,0.00032187,30]
[421572619,1777900232000,-155.0,0.00032187,30]
[421572621,1777900232000,-1000.0,0.00032199,2]
[421572620,1777900232000,-156.0,0.00032187,30]
[421572631,1777900232000,-155.0,0.00033187,30]
[421572622,1777900232000,-165.3,0.0003221,5]
[421572662,1777900232000,-155.0,0.00036187,30]
[421572625,1777900232000,-497.85714301,0.00032685,2]
[421572627,1777900232000,-320.0,0.00032754,120]
[421572632,1777900232000,-155.0,0.00033187,30]
[421572623,1777900232000,-152.37,0.0003222,2]
[421572645,1777900232000,-4763.58430513,0.00035158,2]
[421572626,1777900232000,-150.0,0.00032742,2]
[421572638,1777900232000,-155.0,0.00034187,30]
[421572646,1777900232000,-155.0,0.00035187,30]
[421572644,1777900232000,-525.05329876,0.00035084,2]
[421572641,1777900232000,-150.0,0.0003419,2]
[421572630,1777900232000,-160.0,0.00033187,30]
[421572624,1777900232000,-150.0,0.00032562,2]
[421572628,1777900232000,-4763.58430513,0.00032786,2]
[421572629,1777900232000,-300.0,0.00032867,2]
[421572669,1777900233000,-150.0,0.00036986,7]
[421572672,1777900233000,-150.0,0.00036986,7]
[421572664,1777900233000,-4763.58430513,0.00036344,2]
[421572671,1777900233000,-150.0,0.00036986,7]
[421572670,1777900233000,-150.0,0.00036986,7]
[421572665,1777900233000,-193.33,0.00036438,120]
[421572667,1777900233000,-525.05329876,0.00036881,2]
[421572666,1777900233000,-500.0,0.00036844,37]
[421572674,1777900233000,-150.0,0.00036986,7]
[421572673,1777900233000,-150.0,0.00036986,7]
[421572678,1777900233000,-155.0,0.00037187,30]
[421572677,1777900233000,-112095.624543,0.000371,2]
[421572680,1777900233000,-90036.58946489,0.000372,2]
[421572676,1777900233000,-114067.0863424,0.000371,2]
[421572679,1777900233000,-165.4113931,0.00037187,30]
[421572675,1777900233000,-2463.0,0.00037021,2]
[421572668,1777900233000,-150.0,0.00036986,30]
[421572686,1777900237000,-315.53148862,0.00027397,2]
[421572688,1777900237000,-150.41,0.00028644,30]
[421572683,1777900237000,-150.41,0.00026252,30]
[421572691,1777900237000,-160.44,0.00029124,30]
[421572681,1777900237000,-150.41,0.00024658,2]
[421572690,1777900237000,-160.44,0.0002902,7]
[421572682,1777900237000,-150.41,0.00025455,7]
[421572689,1777900237000,-160.44,0.00028917,2]
[421572692,1777900237000,-160.44,0.00029228,2]
[421572687,1777900237000,-150.41,0.00027847,7]
[421572684,1777900237000,-150.41,0.00027049,2]
[421572694,1777900237000,-150.41,0.00029441,2]
[421572685,1777900237000,-9.46576,0.00027397,2]
[421572698,1777900237000,-2384.91899349,0.000372,2]
[421572695,1777900237000,-150.48,0.00030239,7]
[421572699,1777900237000,-1187.75083997,0.000372,2]
[421572702,1777900237000,-500.0,0.000372,2]
[421572696,1777900237000,-379.90465139,0.000372,2]
[421572700,1777900237000,-271.75,0.000372,2]
[421572701,1777900237000,-3778.83298167,0.000372,2]
[421572693,1777900237000,-160.46,0.00029331,7]
[421572697,1777900237000,-3479.08502413,0.000372,2]
[421572708,1777900238000,-528624.84246907,0.000372,2]
[421572707,1777900238000,-682.45837827,0.000372,2]
[421572706,1777900238000,-117368.34336597,0.000372,2]
[421572704,1777900238000,-331.39424204,0.000372,2]
[421572705,1777900238000,-2213.97457332,0.000372,2]
[421572703,1777900238000,-901.16,0.000372,2]
[421572718,1777900240000,-788.99975,0.000372,2]
[421572719,1777900240000,-610.45389952,0.000372,2]
[421572721,1777900240000,-181329.73613524,0.000372,2]
[421572720,1777900240000,-438.0000005,0.000372,2]
[421572724,1777900242000,-1615.20654343,0.000372,2]
[421572723,1777900242000,-295.96290464,0.00037021,2]
[421572722,1777900242000,-925.03709536,0.00037021,2]
[421572727,1777900243000,-33193.50312019,0.000372,2]
[421572726,1777900243000,-4541.51549796,0.000372,2]
[421572725,1777900243000,-36572.36268271,0.000372,2]
[421572736,1777900246000,-150.0,0.00031011,2]
[421572734,1777900246000,-150.0,0.00029534,2]
[421572740,1777900246000,-2220.70410253,0.000372,2]
[421572733,1777900246000,-508.0,0.00027137,2]
[421572735,1777900246000,-508.0,0.00029919,5]
[421572738,1777900246000,-508.0,0.00032702,8]
[421572739,1777900246000,-508.0,0.00035484,11]
[421572737,1777900246000,-150.0,0.00032562,2]
[421572743,1777900246000,-7857.88816344,0.000372,2]
[421572742,1777900246000,-1951.71945842,0.000372,2]
[421572741,1777900246000,-1119.02292694,0.000372,2]
[421572751,1777900291000,2500.0,0.00027268,120]
[421572750,1777900291000,2500.0,0.00027268,120]
[421572749,1777900291000,2500.0,0.00027268,120]
[421572748,1777900291000,2500.0,0.00027268,120]
[421572753,1777900292000,2500.0,0.00027268,120]
[421572752,1777900292000,2500.0,0.00027268,120]
[421572754,1777900293000,2500.0,0.00027268,120]
[421572756,1777900293000,2500.0,0.00027268,120]
[421572755,1777900293000,2500.0,0.00027268,120]
[421572757,1777900294000,2503.755,0.00027268,120]
[421572758,1777900313000,280.0,8.219e-05,2]
[421572763,1777900746000,166.66,0.00022983,30]
[421572762,1777900746000,166.66,0.00022509,30]
[421572765,1777900747000,166.66,0.00023931,30]
[421572764,1777900747000,166.66,0.00023457,30]
[421572767,1777900876000,-186.2,0.00016438,2]
[421572768,1777900932000,170.7,0.00016438,2]
[421572770,1777900957000,98.45,9.9e-05,2]
[421572769,1777900957000,62.1,9.9e-05,2]
[421572781,1777901410000,13720.0,0.00012,2]
[421572813,1777901432000,-206.0,0.00021,2]
[421572819,1777901432000,-206.0,0.00022,2]
[421572815,1777901432000,-2351.0,0.00021282,2]
[421572812,1777901432000,-1800.0,0.00021,2]
[421572816,1777901432000,-203.46,0.00021315,2]
[421572821,1777901432000,-6255.22485272,0.0002231,2]
[421572820,1777901432000,-203.46,0.00022105,2]
[421572817,1777901432000,-150.99,0.00021757,2]
[421572822,1777901432000,-156.4,0.00022353,2]
[421572826,1777901432000,-3292.0,0.00023343,2]
[421572833,1777901432000,-543.29483481,0.00024405,30]
[421572824,1777901432000,-203.46,0.00022894,2]
[421572823,1777901432000,-352.8,0.00022562,2]
[421572828,1777901432000,-165.05,0.00023694,2]
[421572830,1777901432000,-206.0,0.00024,2]
[421572825,1777901432000,-206.0,0.00023,2]
[421572831,1777901432000,-156.4,0.00024324,2]
[421572827,1777901432000,-203.46,0.00023683,2]
[421572832,1777901432000,-166.66,0.00024405,30]
[421572834,1777901432000,-203.46,0.00024473,2]
[421572829,1777901432000,-10043.11094307,0.000238,2]
[421572835,1777901432000,-500.0,0.00024609,2]
[421572838,1777901432000,-166.66,0.00024879,30]
[421572837,1777901432000,-164.31,0.00024658,2]
[421572836,1777901432000,-164.3,0.00024658,2]
[421572843,1777901432000,-200.0,0.00025699,2]
[421572814,1777901432000,-443.0,0.00021,2]
[421572818,1777901432000,-1981.0,0.00022,3]
[421572810,1777901432000,-162.48539177,0.00020948,2]
[421572809,1777901432000,-300.0,0.000209,2]
[421572783,1777901432000,-77184.98450314,0.00012,2]
[421572784,1777901432000,-250.0,0.00014,2]
[421572787,1777901432000,-300.0,0.00016,2]
[421572786,1777901432000,-203.46,0.00015789,2]
[421572788,1777901432000,-156.4,0.00016438,2]
[421572789,1777901432000,-260.48398543,0.00016478,2]
[421572785,1777901432000,-203.46,0.00014999,2]
[421572790,1777901432000,-1335.86747196,0.00016499,2]
[421572796,1777901432000,-397.0,0.00017691,2]
[421572794,1777901432000,-1200.0,0.0001769,2]
[421572791,1777901432000,-203.46,0.00016578,2]
[421572795,1777901432000,-3537.25,0.00017691,2]
[421572792,1777901432000,-203.46,0.00017368,2]
[421572793,1777901432000,-420.0,0.0001765,3]
[421572798,1777901432000,-203.46,0.00018157,2]
[421572799,1777901432000,-156.4,0.0001841,2]
[421572800,1777901432000,-203.46,0.00018947,2]
[421572808,1777901432000,-203.46,0.00020526,2]
[421572801,1777901432000,-1680.0,0.00019403,2]
[421572797,1777901432000,-350.0,0.00018,2]
[421572804,1777901432000,-400.0,0.0002,2]
[421572807,1777901432000,-156.4,0.00020381,2]
[421572805,1777901432000,-172.0,0.0002,2]
[421572803,1777901432000,-206.0,0.0002,2]
[421572802,1777901432000,-203.46,0.00019736,2]
[421572806,1777901432000,-4365.74,0.0002,2]
[421572811,1777901432000,-400.38,0.00020951,2]
[421572839,1777901432000,-217.0,0.00025,2]
[421572840,1777901432000,-203.46,0.00025262,2]
[421572844,1777901432000,-203.46,0.00026052,2]
[421572842,1777901432000,-739.0,0.00025603,2]
[421572884,1777901432000,-500.0,0.00027094,17]
[421572841,1777901432000,-154.11,0.00025334,2]
[421572874,1777901432000,-500.0,0.00027094,17]
[421572880,1777901432000,-500.0,0.00027094,17]
[421572878,1777901432000,-500.0,0.00027094,17]
[421572881,1777901432000,-500.0,0.00027094,17]
[421572872,1777901432000,-500.0,0.00027094,17]
[421572879,1777901432000,-500.0,0.00027094,17]
[421572877,1777901432000,-500.0,0.00027094,17]
[421572885,1777901432000,-514.3099146,0.00027094,17]
[421572890,1777901432000,-238.51,0.00027397,10]
[421572887,1777901432000,-164.3,0.00027397,7]
[421572886,1777901432000,-509.0,0.00027137,2]
[421572876,1777901432000,-500.0,0.00027094,17]
[421572888,1777901432000,-1500.0,0.00027397,2]
[421572891,1777901432000,-1500.0,0.000274,7]
[421572892,1777901432000,-203.46,0.00027631,2]
[421572895,1777901432000,-500.0,0.0002786,2]
[421572893,1777901432000,-150.0,0.000277,14]
[421572894,1777901432000,-150.34,0.00027857,2]
[421572897,1777901432000,-500.0,0.0002786,2]
[421572896,1777901432000,-500.0,0.0002786,2]
[421572899,1777901432000,-500.0,0.0002786,2]
[421572902,1777901432000,-500.0,0.0002786,2]
[421572898,1777901432000,-500.0,0.0002786,2]
[421572901,1777901432000,-500.0,0.0002786,2]
[421572903,1777901432000,-500.0,0.0002786,2]
[421572900,1777901432000,-500.0,0.0002786,2]
[421572889,1777901432000,-300.0,0.00027397,2]
[421572875,1777901432000,-500.0,0.00027094,17]
[421572882,1777901432000,-506.83942771,0.00027094,17]
[421572873,1777901432000,-500.0,0.00027094,17]
[421572845,1777901432000,-500.0,0.00026057,2]
[421572846,1777901432000,-156.4,0.00026296,2]
[421572848,1777901432000,-200.0,0.00026475,2]
[421572856,1777901432000,-500.0,0.00027094,17]
[421572857,1777901432000,-500.0,0.00027094,17]
[421572849,1777901432000,-203.46,0.00026841,2]
[421572858,1777901432000,-208.07839763,0.00027094,17]
[421572847,1777901432000,-500.0,0.00026475,2]
[421572853,1777901432000,-500.0,0.00027094,17]
[421572883,1777901432000,-500.0,0.00027094,17]
[421572851,1777901432000,-500.0,0.00027094,17]
[421572854,1777901432000,-500.0,0.00027094,17]
[421572852,1777901432000,-500.0,0.00027094,17]
[421572855,1777901432000,-500.0,0.00027094,17]
[421572860,1777901432000,-150.0,0.00027094,2]
[421572865,1777901432000,-500.0,0.00027094,17]
[421572850,1777901432000,-150.0,0.00026974,2]
[421572861,1777901432000,-500.0,0.00027094,17]
[421572869,1777901432000,-500.0,0.00027094,17]
[421572868,1777901432000,-500.0,0.00027094,17]
[421572866,1777901432000,-500.0,0.00027094,17]
[421572864,1777901432000,-500.0,0.00027094,17]
[421572863,1777901432000,-500.0,0.00027094,17]
[421572859,1777901432000,-500.0,0.00027094,17]
[421572870,1777901432000,-500.0,0.00027094,17]
[421572871,1777901432000,-500.0,0.00027094,17]
[421572862,1777901432000,-500.0,0.00027094,17]
[421572867,1777901432000,-500.0,0.00027094,17]
[421572910,1777901433000,-164.31,0.00029232,7]
[421572908,1777901433000,-227.19,0.000291,14]
[421572911,1777901433000,-505.75250518,0.00029474,2]
[421572913,1777901433000,-2000.0,0.00029985,2]
[421572905,1777901433000,-156.4,0.00028267,2]
[421572904,1777901433000,-1419.11982999,0.00027861,2]
[421572907,1777901433000,-164.3,0.00029082,2]
[421572909,1777901433000,-203.46,0.0002921,2]
[421572914,1777901433000,-203.46,0.00029999,2]
[421572906,1777901433000,-203.46,0.0002842,2]
[421572917,1777901433000,-726.74607272,0.00030463,2]
[421572919,1777901433000,-150.0,0.00031011,2]
[421572912,1777901433000,-150.0,0.00029534,2]
[421572918,1777901433000,-509.0,0.00030661,5]
[421572915,1777901433000,-156.4,0.00030239,2]
[421572921,1777901433000,-500.0,0.0002786,2]
[421572920,1777901433000,-1053.10080969,0.00031021,2]
[421572922,1777901433000,-500.0,0.0002786,2]
[421572924,1777901433000,-1729.88370083,0.00031021,2]
[421572923,1777901433000,-500.0,0.0002786,2]
[421572916,1777901433000,-273.25392728,0.00030463,2]
[421572929,1777901438000,-164.3,0.00027397,7]
[421572928,1777901438000,-164.3,0.00024658,2]
[421572931,1777901438000,-198.75,0.00027397,10]
[421572933,1777901438000,-500.0,0.0002786,2]
[421572932,1777901438000,-500.0,0.0002786,2]
[421572934,1777901438000,-50.99,0.0002786,2]
[421573022,1777901440000,-500.0,0.0002786,2]
[421573032,1777901440000,-206.0,0.00031188,30]
[421573019,1777901440000,-500.0,0.0002786,2]
[421573017,1777901440000,-500.0,0.0002786,2]
[421573013,1777901440000,-500.0,0.0002786,2]
[421573012,1777901440000,-500.0,0.0002786,2]
[421573015,1777901440000,-267.82984509,0.0002786,2]
[421573021,1777901440000,-500.0,0.0002786,2]
[421573018,1777901440000,-500.0,0.0002786,2]
[421573016,1777901440000,-232.17015491,0.0002786,2]
[421573020,1777901440000,-500.0,0.0002786,2]
[421573004,1777901440000,-500.0,0.0002786,2]
[421573010,1777901440000,-500.0,0.0002786,2]
[421573009,1777901440000,-500.0,0.0002786,2]
[421573008,1777901440000,-281.66435461,0.0002786,2]
[421573006,1777901440000,-500.0,0.0002786,2]
[421573005,1777901440000,-500.0,0.0002786,2]
[421573007,1777901440000,-218.33564539,0.0002786,2]
[421573026,1777901440000,-164.3,0.00029046,2]
[421573002,1777901440000,-500.0,0.0002786,2]
[421573003,1777901440000,-500.0,0.0002786,2]
[421573001,1777901440000,-449.01,0.0002786,2]
[421573011,1777901440000,-500.0,0.0002786,2]
[421573025,1777901440000,-503.0,0.00027918,2]
[421573014,1777901440000,-500.0,0.0002786,2]
[421573023,1777901440000,-500.0,0.0002786,2]
[421573024,1777901440000,-500.0,0.0002786,2]
[421573052,1777901440000,-246.017,0.00032702,33]
[421573050,1777901440000,-150.0,0.00032562,2]
[421573047,1777901440000,-413.0,0.0003237,2]
[421573048,1777901440000,-172.68,0.00032411,120]
[421573038,1777901440000,-386.67016809,0.00031734,2]
[421573041,1777901440000,-155.0,0.00032188,30]
[421573037,1777901440000,-250.52816815,0.00031259,2]
[421573042,1777901440000,-206.0,0.00032188,30]
[421573045,1777901440000,-160.0,0.00032188,30]
[421573040,1777901440000,-150.6,0.00032037,120]
[421573039,1777901440000,-405.0,0.0003195,2]
[421573046,1777901440000,-156.4,0.0003221,5]
[421573043,1777901440000,-160.0,0.00032188,30]
[421573028,1777901440000,-164.32,0.00030136,30]
[421573044,1777901440000,-154.0,0.00032188,30]
[421573027,1777901440000,-164.31,0.00029232,7]
[421573029,1777901440000,-2217.01548948,0.00031021,2]
[421573030,1777901440000,-160.0,0.00031059,2]
[421573031,1777901440000,-155.0,0.00031188,30]
[421573033,1777901440000,-160.0,0.00031188,30]
[421573035,1777901440000,-71.41351823,0.00031188,30]
[421573034,1777901440000,-154.0,0.00031188,30]
[421573036,1777901440000,-88.58648177,0.00031188,30]
[421573087,1777901441000,-500.0,0.00035616,7]
[421573073,1777901441000,-166.0,0.00035188,30]
[421573075,1777901441000,-160.0,0.00035188,30]
[421573071,1777901441000,-150.34,0.00034706,2]
[421573076,1777901441000,-150.0,0.00035359,7]
[421573070,1777901441000,-345.0,0.00034389,30]
[421573080,1777901441000,-165.05,0.00035541,2]
[421573079,1777901441000,-150.0,0.00035359,7]
[421573078,1777901441000,-150.0,0.00035359,7]
[421573077,1777901441000,-150.0,0.00035359,7]
[421573086,1777901441000,-500.0,0.00035616,7]
[421573081,1777901441000,-500.0,0.00035616,7]
[421573063,1777901441000,-156.4,0.00034182,7]
[421573084,1777901441000,-180.77189508,0.00035616,7]
[421573083,1777901441000,-500.0,0.00035616,7]
[421573072,1777901441000,-355.58610813,0.00034959,3]
[421573054,1777901441000,-159.12041396,0.00033,2]
[421573067,1777901441000,-159.0,0.00034188,30]
[421573082,1777901441000,-500.0,0.00035616,7]
[421573058,1777901441000,-154.0,0.00033188,30]
[421573059,1777901441000,-160.0,0.00033188,30]
[421573060,1777901441000,-2000.0,0.00033733,2]
[421573062,1777901441000,-308.0,0.00034059,30]
[421573061,1777901441000,-964.099,0.00033957,37]
[421573066,1777901441000,-206.0,0.00034188,30]
[421573055,1777901441000,-155.0,0.00033188,30]
[421573057,1777901441000,-161.0,0.00033188,30]
[421573064,1777901441000,-509.0,0.00034185,9]
[421573074,1777901441000,-206.0,0.00035188,30]
[421573065,1777901441000,-155.0,0.00034188,30]
[421573068,1777901441000,-160.0,0.00034188,30]
[421573069,1777901441000,-150.0,0.0003419,2]
[421573056,1777901441000,-206.0,0.00033188,30]
[421573085,1777901441000,-500.0,0.00035616,7]
[421573121,1777901441000,-160.0,0.00037188,30]
[421573088,1777901441000,-500.0,0.00035616,7]
[421573108,1777901441000,-610.19564565,0.00037186,30]
[421573109,1777901441000,-6888.0,0.00037186,30]
[421573110,1777901441000,-500.0,0.00037186,30]
[421573106,1777901441000,-173.8714528,0.00037161,2]
[421573111,1777901441000,-518.5,0.00037186,30]
[421573114,1777901441000,-537.6845,0.00037186,30]
[421573107,1777901441000,-231.90606663,0.00037186,30]
[421573117,1777901441000,-222.10743701,0.00037186,30]
[421573115,1777901441000,-221.23071322,0.00037186,30]
[421573119,1777901441000,-213.36942952,0.00037186,30]
[421573116,1777901441000,-666.72878,0.00037186,30]
[421573120,1777901441000,-206.0,0.00037188,30]
[421573118,1777901441000,-151.0,0.00037186,30]
[421573122,1777901441000,-355834.67998166,0.000372,2]
[421573113,1777901441000,-686.76230772,0.00037186,30]
[421573090,1777901441000,-200.18,0.00035743,2]
[421573105,1777901441000,-988.3797112,0.00037161,2]
[421573104,1777901441000,-526.1740746,0.00037161,2]
[421573089,1777901441000,-500.0,0.00035617,30]
[421573091,1777901441000,-150.0,0.0003585,7]
[421573092,1777901441000,-150.0,0.00035899,2]
[421573093,1777901441000,-1614.57,0.00036132,30]
[421573094,1777901441000,-156.4,0.00036153,30]
[421573095,1777901441000,-206.0,0.00036188,30]
[421573112,1777901441000,-7142.856,0.00037186,30]
[421573098,1777901441000,-500.0,0.00036686,36]
[421573096,1777901441000,-160.0,0.00036188,30]
[421573097,1777901441000,-150.0,0.00036341,7]
[421573100,1777901441000,-179.8911,0.0003704,85]
[421573102,1777901441000,-1343.6742551,0.00037157,2]
[421573101,1777901441000,-517.64653176,0.00037095,2]
[421573103,1777901441000,-17479.4487643,0.00037161,2]
[421573099,1777901441000,-150.0,0.00036832,7]
[421573135,1777901443000,-941.02091776,0.000372,2]
[421573136,1777901443000,-982014.15837977,0.000372,2]
[421573137,1777901443000,-3302.55053612,0.000372,2]
[421573139,1777901443000,-878.11993776,0.000372,2]
[421573141,1777901443000,-160.55250659,0.000372,2]
[421573138,1777901443000,-415.5375,0.000372,2]
[421573156,1777901446000,-22477.64742056,0.000372,2]
[421573154,1777901446000,-439.13846193,0.000372,2]
[421573155,1777901446000,-152416.17086171,0.000372,2]
[421573152,1777901446000,-8845.61411955,0.000372,2]
[421573153,1777901446000,-34587.93413307,0.000372,2]
[421573166,1777901511000,179.38567304,0.0002817,120]
[421573168,1777901742000,1857.79392881,0.000115,2]
[421573171,1777902527000,150.6,0.0002526,120]
[421573176,1777902571000,-151.0,0.0002095,2]
[421573173,1777902571000,-1200.0,0.00020949,2]
[421573172,1777902571000,-964.34,0.00018856,2]
[421573174,1777902571000,-150.0,0.0002095,2]
[421573177,1777902571000,-156.0,0.0002095,2]
[421573179,1777902571000,-406.0,0.0002095,2]
[421573175,1777902571000,-151.0,0.0002095,2]
[421573180,1777902571000,-412.0,0.0002095,2]
[421573181,1777902571000,-399.0,0.0002095,2]
[421573182,1777902571000,-408.0,0.0002095,2]
[421573185,1777902571000,-87.374718,0.0002095,2]
[421573183,1777902571000,-410.0,0.0002095,2]
[421573184,1777902571000,-407.0,0.0002095,2]
[421573178,1777902571000,-407.0,0.0002095,2]
[421573210,1777902632000,-160.82247471,0.00021988,7]
[421573209,1777902632000,-160.0,0.000214,2]
[421573200,1777902632000,-401.0,0.00020951,2]
[421573201,1777902632000,-150.0,0.00020951,2]
[421573196,1777902632000,-317.625282,0.0002095,2]
[421573197,1777902632000,-55.99041513,0.0002095,2]
[421573194,1777902632000,-300.0,0.0002095,2]
[421573199,1777902632000,-407.0,0.0002095,2]
[421573198,1777902632000,-351.00958487,0.0002095,2]
[421573193,1777902632000,-349.29344201,0.00018856,2]
[421573192,1777902632000,-445.16237278,0.00018856,2]
[421573191,1777902632000,-1378.17418521,0.00018856,2]
[421573190,1777902632000,-938.55,0.00018856,2]
[421573208,1777902632000,-151.0,0.00020951,2]
[421573195,1777902632000,-960.0,0.0002095,2]
[421573203,1777902632000,-240.3787856,0.00020951,2]
[421573205,1777902632000,-413.0,0.00020951,2]
[421573206,1777902632000,-412.0,0.00020951,2]
[421573202,1777902632000,-151.0,0.00020951,2]
[421573222,1777902632000,-129.28036709,0.0002421,2]
[421573219,1777902632000,-1009.81225566,0.00023,2]
[421573218,1777902632000,-5900.38076727,0.00023,2]
[421573221,1777902632000,-159.50142779,0.00024089,2]
[421573217,1777902632000,-159.50142778,0.00022885,2]
[421573215,1777902632000,-478.50428337,0.00022885,2]
[421573216,1777902632000,-159.50142779,0.00022885,2]
[421573213,1777902632000,-2682.05,0.00022562,2]
[421573212,1777902632000,-831.32,0.00022562,2]
[421573211,1777902632000,-162.48539177,0.00022496,2]
[421573204,1777902632000,-151.0,0.00020951,2]
[421573207,1777902632000,-402.0,0.00020951,2]
[421573220,1777902632000,-478.50428337,0.00024089,2]
[421573214,1777902632000,-420.0,0.0002279,2]
[421573237,1777902638000,-150.0,0.0002505,2]
[421573232,1777902638000,-1023.26934686,0.0002421,2]
[421573238,1777902638000,-5000.0,0.00025087,2]
[421573239,1777902638000,-200.0,0.00025207,2]
[421573236,1777902638000,-464.0,0.00024792,2]
[421573240,1777902638000,-272.15186221,0.0002524,2]
[421573241,1777902638000,-227.84813779,0.0002524,2]
[421573234,1777902638000,-150.34,0.00024658,2]
[421573235,1777902638000,-225.35,0.00024658,2]
[421573242,1777902638000,-354.72988257,0.00025402,2]
[421573243,1777902638000,-993.34152341,0.00025402,2]
[421573233,1777902638000,-1444.91193183,0.0002421,2]
[421573272,1777902640000,-500.0,0.0002682,17]
[421573269,1777902640000,-429.00859402,0.00025402,2]
[421573268,1777902640000,-225.78,0.00024658,2]
[421573271,1777902640000,-364.19695494,0.0002682,17]
[421573273,1777902640000,-500.0,0.0002682,17]
[421573270,1777902640000,-135.80304506,0.0002682,17]